[Event "CZE-ch 2020"]
[Site "Pilsen"]
[Date "2020.08.24"]
[Round "2.9"]
[White "Hurdzan, Tomas"]
[Black "Kusa, Jakub"]
[Result "1-0"]
[ECO "E04"]
[WhiteElo "2325"]
[BlackElo "2239"]
[Annotator "ChessBase"]
[PlyCount "83"]
[EventDate "2020.08.23"]
[EventType "swiss"]
[EventCountry "CZE"]
[SourceTitle "playchess.com"]
[Source "ChessBase"]
[SourceQuality "1"]
[TimeControl "40/5400+30:1800+30"]

1. d4 {[%emt 0:00:00]} Nf6 {[%emt 0:00:04]} 2. c4 {[%emt 0:00:00]} e6 {[%emt 0:00:07]} 3. g3 {[%emt 0:00:05]} d5 {[%emt 0:00:24]} 4. Bg2 {[%emt 0:00:12]} dxc4 {[%emt 0:01:26]} 5. Nf3 {[%emt 0:01:10]} Bb4+ {[%emt 0:01:28]} 6. Bd2 {[%emt 0:04:17]} Bxd2+ {[%emt 0:00:38]} 7. Nbxd2 {[%emt 0:00:26]} c3 {[%emt 0:01:52]} 8. bxc3 {[%emt 0:00:09]} c5 {[%emt 0:01:38]} 9. O-O {[%emt 0:08:43]} O-O {[%emt 0:02:12]} 10. Nc4 {[%emt 0:02:18]} cxd4 {[%emt 0:02:24]} 11. cxd4 {[%emt 0:00:20]} b5 {[%emt 0:09:58]} 12. Ne1 {[%emt 0:09:46]} Nd5 {[%emt 0:01:23]} 13. Ne5 {[%emt 0:00:05]} Bb7 {[%emt 0:02:51]} 14. Qb3 {[%emt 0:05:46]} a6 {[%emt 0:06:56]} 15. N1d3 {[%emt 0:01:09]} Nd7 {[%emt 0:14:24]} 16. a4 {[%emt 0:13:04]} Nxe5 {[%emt 0:01:21]} 17. Nxe5 {[%emt 0:00:28]} b4 {[%emt 0:03:35]} 18. Rfc1 {[%emt 0:08:57]} Qe7 {[%emt 0:07:10]} 19. Nc6 {[%emt 0:15:20]} Bxc6 {[%emt 0:03:44]} 20. Rxc6 {[%emt 0:00:11]} Rac8 {[%emt 0:08:16]} 21. Rxa6 {[%emt 0:04:20]} Rc3 {[%emt 0:01:39]} 22. Qb2 {[%emt 0:00:06]} Rfc8 {[%emt 0:00:46]} 23. Be4 {[%emt 0:09:14]} f5 {[%emt 0:03:32]} 24. Bf3 {[%emt 0:03:30]} Qd7 {[%emt 0:11:15]} 25. Re1 {[%emt 0:02:09]} b3 {[%emt 0:01:23]} 26. Ra5 {[%emt 0:00:59]} Nb4 {[%emt 0:02:32]} 27. Rd1 {[%emt 0:02:07]} Na2 {[%emt 0:05:12]} 28. Rb5 {[%emt 0:01:09]} Nc1 {[%emt 0:00:36]} 29. Qa3 {[%emt 0:03:11]} Rc2 {[%emt 0:02:02]} 30. Rb7 {[%emt 0:00:29]} R8c7 {[%emt 0:03:02]} 31. Rb8+ {[%emt 0:00:05]} Rc8 {[%emt 0:00:25]} 32. Rb7 {[%emt 0:00:04]} R8c7 {[%emt 0:00:06]} 33. Rb6 {[%emt 0:02:16]} Ra2 {[%emt 0:01:13]} 34. Qb4 {[%emt 0:01:23]} b2 {[%emt 0:00:40]} 35. a5 {[%emt 0:00:59]} Qe7 {[%emt 0:00:41]} 36. Qb5 {[%emt 0:01:23]} Qd7 {[%emt 0:00:26]} 37. Rb8+ {[%emt 0:00:50]} Kf7 {[%emt 0:00:19]} 38. Qb6 {[%emt 0:00:04]} Qe7 {[%emt 0:00:49]} 39. d5 {[%emt 0:00:24]} Nxe2+ {[%emt 0:00:21]} 40. Bxe2 {[%emt 0:02:05]} Rc1 {[%emt 0:00:38]} 41. Rb7 {[%emt 0:02:54]} b1=Q {[%emt 0:01:12]} 42. Qxe6+ {[%emt 0:00:29]} 1-0

[Event "CZE-ch 2020"]
[Site "Pilsen"]
[Date "2020.08.24"]
[Round "2.10"]
[White "Mica, Marek"]
[Black "Jurek, Josef"]
[Result "1/2-1/2"]
[ECO "E12"]
[WhiteElo "2315"]
[BlackElo "2234"]
[Annotator "ChessBase"]
[PlyCount "67"]
[EventDate "2020.08.23"]
[EventType "swiss"]
[EventCountry "CZE"]
[SourceTitle "playchess.com"]
[Source "ChessBase"]
[SourceQuality "1"]
[TimeControl "40/5400+30:1800+30"]

1. d4 {[%emt 0:00:00]} Nf6 {[%emt 0:00:00]} 2. c4 {[%emt 0:00:00]} e6 {[%emt 0:00:00]} 3. Nf3 {[%emt 0:00:06]} b6 {[%emt 0:00:36]} 4. a3 {[%emt 0:00:27]} Bb7 {[%emt 0:02:34]} 5. Nc3 {[%emt 0:00:29]} d5 {[%emt 0:01:19]} 6. Bg5 {[%emt 0:00:55]} Be7 {[%emt 0:01:14]} 7. e3 {[%emt 0:00:46]} Nbd7 {[%emt 0:05:01]} 8. cxd5 {[%emt 0:02:33]} Nxd5 {[%emt 0:01:59]} 9. Bxe7 {[%emt 0:00:29]} Qxe7 {[%emt 0:01:12]} 10. Nxd5 {[%emt 0:00:58]} exd5 {[%emt 0:00:55]} 11. Rc1 {[%emt 0:00:50]} c6 {[%emt 0:03:43]} 12. Bd3 {[%emt 0:03:23]} O-O {[%emt 0:01:55]} 13. Qc2 {[%emt 0:04:07]} g6 {[%emt 0:02:41]} 14. O-O {[%emt 0:06:50]} Rfe8 {[%emt 0:05:22]} 15. Qe2 {[%emt 0:14:26]} a5 {[%emt 0:04:57]} 16. Rfd1 {[%emt 0:02:33]} Qd6 {[%emt 0:02:58]} 17. Ne1 {[%emt 0:08:24]} Re7 {[%emt 0:02:35]} 18. Qf3 {[%emt 0:01:22]} Rc8 {[%emt 0:07:07]} 19. Qg3 {[%emt 0:07:21]} Qxg3 {[%emt 0:01:12]} 20. hxg3 {[%emt 0:00:12]} c5 {[%emt 0:01:29]} 21. dxc5 {[%emt 0:02:00]} bxc5 {[%emt 0:03:23]} 22. b4 {[%emt 0:16:25]} axb4 {[%emt 0:08:03]} 23. axb4 {[%emt 0:00:11]} cxb4 {[%emt 0:09:38]} 24. Rb1 {[%emt 0:02:45]} Rc3 {[%emt 0:07:57]} 25. Rxb4 {[%emt 0:01:28]} Nc5 {[%emt 0:00:28]} 26. Be2 {[%emt 0:01:26]} Kg7 {[%emt 0:03:28]} 27. Bf3 {[%emt 0:04:25]} Ne4 {[%emt 0:02:09]} 28. Nd3 {[%emt 0:06:26]} Rc2 {[%emt 0:02:57]} 29. Rb2 {[%emt 0:03:39]} Rxb2 {[%emt 0:02:01]} 30. Nxb2 {[%emt 0:00:07]} Rc7 {[%emt 0:00:49]} 31. Nd3 {[%emt 0:01:57]} Rc2 {[%emt 0:02:44]} 32. Nb4 {[%emt 0:01:07]} Rb2 {[%emt 0:01:11]} 33. Nd3 {[%emt 0:01:04]} Rc2 {[%emt 0:01:28]} 34. Nb4 {[%emt 0:01:13]} 1/2-1/2

[Event "CZE-ch 2020"]
[Site "Pilsen"]
[Date "2020.08.24"]
[Round "2.11"]
[White "Kopriva, Martin"]
[Black "Kozusek, Daniel"]
[Result "0-1"]
[ECO "C15"]
[WhiteElo "2079"]
[BlackElo "2307"]
[Annotator "ChessBase"]
[PlyCount "70"]
[EventDate "2020.08.23"]
[EventType "swiss"]
[EventCountry "CZE"]
[SourceTitle "playchess.com"]
[Source "ChessBase"]
[SourceQuality "1"]
[TimeControl "40/5400+30:1800+30"]

1. e4 {[%emt 0:00:00]} e6 {[%emt 0:01:36]} 2. d4 {[%emt 0:00:00]} d5 {[%emt 0:00:04]} 3. Nc3 {[%emt 0:00:33]} Bb4 {[%emt 0:00:13]} 4. Bd2 {[%emt 0:01:03]} Ne7 {[%emt 0:07:41]} 5. Qg4 {[%emt 0:05:20]} O-O {[%emt 0:03:11]} 6. e5 {[%emt 0:03:50]} f5 {[%emt 0:03:02]} 7. Qh3 {[%emt 0:17:58]} c5 {[%emt 0:01:39]} 8. O-O-O {[%emt 0:21:01]} cxd4 {[%emt 0:02:19]} 9. Nb5 {[%emt 0:02:05]} Bxd2+ {[%emt 0:01:21]} 10. Rxd2 {[%emt 0:00:15]} Ng6 {[%emt 0:00:53]} 11. Nxd4 {[%emt 0:03:26]} Nxe5 {[%emt 0:00:23]} 12. f4 {[%emt 0:04:40]} Ng4 {[%emt 0:01:53]} 13. Ngf3 {[%emt 0:01:31]} Qd6 {[%emt 0:04:36]} 14. Qh4 {[%emt 0:05:38]} Nc6 {[%emt 0:02:02]} 15. h3 {[%emt 0:06:42]} Nf6 {[%emt 0:00:26]} 16. Nxc6 {[%emt 0:04:00]} bxc6 {[%emt 0:00:36]} 17. Bd3 {[%emt 0:01:03]} Rb8 {[%emt 0:02:06]} 18. Ne5 {[%emt 0:01:20]} Ne4 {[%emt 0:02:50]} 19. Bxe4 {[%emt 0:06:25]} fxe4 {[%emt 0:00:12]} 20. Re1 {[%emt 0:00:44]} Ba6 {[%emt 0:09:30]} 21. c3 {[%emt 0:07:06]} Qc7 {[%emt 0:01:54]} 22. Qg3 {[%emt 0:01:05]} Rbd8 {[%emt 0:03:34]} 23. h4 {[%emt 0:01:05]} c5 {[%emt 0:00:49]} 24. h5 {[%emt 0:00:49]} Bb7 {[%emt 0:00:58]} 25. Qg4 {[%emt 0:02:38]} Qe7 {[%emt 0:08:51]} 26. Rh1 {[%emt 0:01:17]} Qf6 {[%emt 0:01:08]} 27. Ng6 {[%emt 0:01:20]} Rfe8 {[%emt 0:01:54]} 28. Nh4 {[%emt 0:00:20]} e3 {[%emt 0:00:39]} 29. Rd3 {[%emt 0:00:27]} d4 {[%emt 0:00:06]} 30. cxd4 {[%emt 0:00:45]} cxd4 {[%emt 0:00:10]} 31. Qg5 {[%emt 0:00:25]} Qxg5 {[%emt 0:00:29]} 32. fxg5 {[%emt 0:00:01]} Be4 {[%emt 0:00:23]} 33. Ra3 {[%emt 0:00:12]} Re7 {[%emt 0:01:30]} 34. g6 {[%emt 0:00:48]} Rc7+ {[%emt 0:00:09]} 35. Kd1 {[%emt 0:00:02]} Rdc8 {[%emt 0:00:15]} 0-1

[Event "CZE-ch 2020"]
[Site "Pilsen"]
[Date "2020.08.24"]
[Round "2.12"]
[White "Orsag, Milan"]
[Black "Nytra, Ondrej"]
[Result "1/2-1/2"]
[ECO "A09"]
[WhiteElo "2300"]
[BlackElo "1925"]
[Annotator "ChessBase"]
[PlyCount "40"]
[EventDate "2020.08.23"]
[EventType "swiss"]
[EventCountry "CZE"]
[SourceTitle "playchess.com"]
[Source "ChessBase"]
[SourceQuality "1"]
[TimeControl "40/5400+30:1800+30"]

1. Nf3 {[%emt 0:00:00]} d5 {[%emt 0:00:00]} 2. c4 {[%emt 0:00:19]} d4 {[%emt 0:07:34]} 3. e3 {[%emt 0:01:41]} c5 {[%emt 0:01:02]} 4. b4 {[%emt 0:01:12]} Bg4 {[%emt 0:03:40]} 5. Qa4+ {[%emt 0:10:38]} Qd7 {[%emt 0:00:59]} 6. Qxd7+ {[%emt 0:01:33]} Nxd7 {[%emt 0:00:14]} 7. bxc5 {[%emt 0:09:44]} e5 {[%emt 0:01:53]} 8. Be2 {[%emt 0:02:14]} Bxc5 {[%emt 0:10:21]} 9. Ba3 {[%emt 0:07:31]} Ngf6 {[%emt 0:09:02]} 10. exd4 {[%emt 0:09:49]} exd4 {[%emt 0:06:02]} 11. Bxc5 {[%emt 0:06:09]} Nxc5 {[%emt 0:01:48]} 12. Nxd4 {[%emt 0:02:56]} O-O-O {[%emt 0:01:12]} 13. Nb3 {[%emt 0:03:29]} Bxe2 {[%emt 0:07:59]} 14. Kxe2 {[%emt 0:00:07]} Rhe8+ {[%emt 0:00:04]} 15. Kd1 {[%emt 0:01:03]} Nd3 {[%emt 0:06:59]} 16. Rf1 {[%emt 0:07:41]} Nb2+ {[%emt 0:01:42]} 17. Kc2 {[%emt 0:00:21]} Nxc4 {[%emt 0:00:07]} 18. Nc3 {[%emt 0:00:15]} Na3+ {[%emt 0:00:44]} 19. Kb2 {[%emt 0:11:03]} Nc4+ {[%emt 0:00:05]} 20. Kc2 {[%emt 0:00:11]} Na3+ {[%emt 0:15:30]} 1/2-1/2

[Event "CZE-ch 2020"]
[Site "Pilsen"]
[Date "2020.08.24"]
[Round "2.13"]
[White "Laznicka, Viktor"]
[Black "Vybiral, Zdenek"]
[Result "1-0"]
[ECO "E67"]
[WhiteElo "2638"]
[BlackElo "2221"]
[Annotator "ChessBase"]
[PlyCount "79"]
[EventDate "2020.08.23"]
[EventType "swiss"]
[EventCountry "CZE"]
[SourceTitle "playchess.com"]
[Source "ChessBase"]
[SourceQuality "1"]
[TimeControl "40/5400+30:1800+30"]

1. d4 {[%emt 0:13:54]} d6 {[%emt 0:00:00]} 2. Nf3 {[%emt 0:00:08]} Nf6 {[%emt 0:00:00]} 3. c4 {[%emt 0:00:08]} g6 {[%emt 0:00:00]} 4. g3 {[%emt 0:00:05]} Bg7 {[%emt 0:00:08]} 5. Bg2 {[%emt 0:00:04]} O-O {[%emt 0:00:09]} 6. Nc3 {[%emt 0:00:09]} Nbd7 {[%emt 0:00:16]} 7. O-O {[%emt 0:00:07]} e5 {[%emt 0:00:09]} 8. h3 {[%emt 0:00:12]} exd4 {[%emt 0:00:38]} 9. Nxd4 {[%emt 0:00:37]} Nb6 {[%emt 0:00:06]} 10. b3 {[%emt 0:01:10]} d5 {[%emt 0:00:42]} 11. Ba3 {[%emt 0:00:50]} Re8 {[%emt 0:00:05]} 12. Qc2 {[%emt 0:00:05]} c6 {[%emt 0:18:48]} 13. Rfd1 {[%emt 0:02:14]} Bd7 {[%emt 0:00:29]} 14. cxd5 {[%emt 0:13:34]} Nbxd5 {[%emt 0:07:30]} 15. Na4 {[%emt 0:07:08]} Qa5 {[%emt 0:08:28]} 16. Bb2 {[%emt 0:02:38]} Rad8 {[%emt 0:00:52]} 17. a3 {[%emt 0:07:14]} Bc8 {[%emt 0:17:42]} 18. e4 {[%emt 0:01:57]} Nc7 {[%emt 0:00:21]} 19. Nc5 {[%emt 0:01:03]} Qb6 {[%emt 0:13:22]} 20. b4 {[%emt 0:01:27]} a5 {[%emt 0:04:41]} 21. bxa5 {[%emt 0:12:55]} Qxa5 {[%emt 0:00:18]} 22. a4 {[%emt 0:00:11]} Na6 {[%emt 0:00:53]} 23. Ndb3 {[%emt 0:00:57]} Qc7 {[%emt 0:08:00]} 24. Nxa6 {[%emt 0:00:35]} bxa6 {[%emt 0:00:02]} 25. Rxd8 {[%emt 0:06:24]} Rxd8 {[%emt 0:00:55]} 26. Rc1 {[%emt 0:00:04]} Qb6 {[%emt 0:04:54]} 27. Bc3 {[%emt 0:14:05]} Re8 {[%emt 0:02:05]} 28. a5 {[%emt 0:01:54]} Qb5 {[%emt 0:02:09]} 29. Qb2 {[%emt 0:01:13]} Be6 {[%emt 0:02:38]} 30. Bxf6 {[%emt 0:04:02]} Bxf6 {[%emt 0:00:07]} 31. Qxf6 {[%emt 0:00:04]} Qxb3 {[%emt 0:00:10]} 32. Rxc6 {[%emt 0:00:22]} Bc4 {[%emt 0:00:27]} 33. e5 {[%emt 0:03:59]} Qb5 {[%emt 0:05:27]} 34. Kh2 {[%emt 0:01:51]} Be6 {[%emt 0:00:43]} 35. h4 {[%emt 0:01:20]} h5 {[%emt 0:01:19]} 36. Be4 {[%emt 0:00:34]} Qa4 {[%emt 0:00:51]} 37. Bxg6 {[%emt 0:00:49]} Qg4 {[%emt 0:01:16]} 38. Bd3 {[%emt 0:01:10]} Qh3+ {[%emt 0:01:24]} 39. Kg1 {[%emt 0:00:01]} Rb8 {[%emt 0:00:36]} 40. Qh6 {[%emt 0:01:19]} 1-0

[Event "CZE-ch 2020"]
[Site "Pilsen"]
[Date "2020.08.24"]
[Round "2.14"]
[White "Novotny, Martin"]
[Black "Stocek, Jiri"]
[Result "0-1"]
[ECO "A04"]
[WhiteElo "2180"]
[BlackElo "2595"]
[Annotator "ChessBase"]
[PlyCount "84"]
[EventDate "2020.08.23"]
[EventType "swiss"]
[EventCountry "CZE"]
[SourceTitle "playchess.com"]
[Source "ChessBase"]
[SourceQuality "1"]
[TimeControl "40/5400+30:1800+30"]

1. Nf3 {[%emt 0:00:00]} d6 {[%emt 0:08:11]} 2. d4 {[%emt 0:01:49]} Nf6 {[%emt 0:00:58]} 3. c4 {[%emt 0:02:17]} g6 {[%emt 0:01:26]} 4. Nc3 {[%emt 0:00:17]} Bf5 {[%emt 0:00:19]} 5. g3 {[%emt 0:05:00]} Ne4 {[%emt 0:04:34]} 6. Nxe4 {[%emt 0:13:15]} Bxe4 {[%emt 0:02:32]} 7. Bg2 {[%emt 0:01:11]} Bg7 {[%emt 0:03:09]} 8. O-O {[%emt 0:02:15]} d5 {[%emt 0:10:58]} 9. Bf4 {[%emt 0:13:32]} Nc6 {[%emt 0:05:35]} 10. Ne5 {[%emt 0:10:15]} Bxe5 {[%emt 0:16:05]} 11. Bxe5 {[%emt 0:08:39]} Bxg2 {[%emt 0:02:52]} 12. Kxg2 {[%emt 0:00:20]} O-O {[%emt 0:01:15]} 13. Rc1 {[%emt 0:06:20]} dxc4 {[%emt 0:01:28]} 14. f3 {[%emt 0:18:07]} b5 {[%emt 0:10:41]} 15. b3 {[%emt 0:05:53]} f6 {[%emt 0:01:04]} 16. Bf4 {[%emt 0:00:30]} Qxd4 {[%emt 0:00:22]} 17. bxc4 {[%emt 0:00:34]} Qxd1 {[%emt 0:02:28]} 18. Rfxd1 {[%emt 0:00:10]} b4 {[%emt 0:00:03]} 19. Bxc7 {[%emt 0:01:09]} Rfc8 {[%emt 0:00:22]} 20. Bf4 {[%emt 0:02:14]} a5 {[%emt 0:00:16]} 21. h4 {[%emt 0:02:04]} Kf7 {[%emt 0:00:13]} 22. Rd7 {[%emt 0:00:53]} Ra7 {[%emt 0:04:30]} 23. Rcd1 {[%emt 0:01:07]} Rca8 {[%emt 0:05:17]} 24. R7d5 {[%emt 0:03:30]} Ra6 {[%emt 0:01:31]} 25. Rb5 {[%emt 0:00:35]} Rd8 {[%emt 0:03:47]} 26. Rxd8 {[%emt 0:00:29]} Nxd8 {[%emt 0:00:05]} 27. Kf2 {[%emt 0:00:26]} Nc6 {[%emt 0:00:08]} 28. Bd2 {[%emt 0:00:35]} Nd4 {[%emt 0:02:40]} 29. Rb7 {[%emt 0:00:29]} Nc2 {[%emt 0:05:19]} 30. e3 {[%emt 0:00:32]} Na3 {[%emt 0:01:22]} 31. Rc7 {[%emt 0:00:17]} Rd6 {[%emt 0:01:21]} 32. Be1 {[%emt 0:00:41]} Rd1 {[%emt 0:00:16]} 33. Ke2 {[%emt 0:00:31]} Ra1 {[%emt 0:00:16]} 34. c5 {[%emt 0:00:27]} Rxa2+ {[%emt 0:00:33]} 35. Kd3 {[%emt 0:00:20]} Ke6 {[%emt 0:01:40]} 36. Rb7 {[%emt 0:00:40]} Kd5 {[%emt 0:01:29]} 37. Ra7 {[%emt 0:00:31]} b3 {[%emt 0:00:26]} 38. Bc3 {[%emt 0:00:34]} b2 {[%emt 0:00:49]} 39. e4+ {[%emt 0:00:14]} Kxc5 {[%emt 0:01:24]} 40. Bd4+ {[%emt 0:00:43]} Kc6 {[%emt 0:00:45]} 41. Bxb2 {[%emt 0:30:18]} Rxb2 {[%emt 0:30:07]} 42. Rxa5 {[%emt 0:00:15]} Rb3+ {[%emt 0:00:14]} 0-1

[Event "CZE-ch 2020"]
[Site "Pilsen"]
[Date "2020.08.24"]
[Round "2.15"]
[White "Michalik, Peter"]
[Black "Kawulok, Marek"]
[Result "1/2-1/2"]
[ECO "E63"]
[WhiteElo "2593"]
[BlackElo "2226"]
[Annotator "ChessBase"]
[PlyCount "73"]
[EventDate "2020.08.23"]
[EventType "swiss"]
[EventCountry "CZE"]
[SourceTitle "playchess.com"]
[Source "ChessBase"]
[SourceQuality "1"]
[TimeControl "40/5400+30:1800+30"]

1. d4 {[%emt 0:00:00]} Nf6 {[%emt 0:00:00]} 2. c4 {[%emt 0:00:00]} g6 {[%emt 0:00:00]} 3. g3 {[%emt 0:00:00]} Bg7 {[%emt 0:00:00]} 4. Bg2 {[%emt 0:00:00]} O-O {[%emt 0:00:00]} 5. Nc3 {[%emt 0:00:02]} d6 {[%emt 0:00:01]} 6. Nf3 {[%emt 0:00:06]} Nc6 {[%emt 0:00:11]} 7. O-O {[%emt 0:00:24]} a6 {[%emt 0:00:34]} 8. d5 {[%emt 0:00:45]} Na5 {[%emt 0:00:27]} 9. b3 {[%emt 0:00:29]} c5 {[%emt 0:01:12]} 10. dxc6 {[%emt 0:00:40]} Nxc6 {[%emt 0:00:39]} 11. Bg5 {[%emt 0:00:20]} Bf5 {[%emt 0:11:17]} 12. Rc1 {[%emt 0:06:44]} Ne4 {[%emt 0:05:12]} 13. Nxe4 {[%emt 0:00:13]} Bxe4 {[%emt 0:00:05]} 14. Qd2 {[%emt 0:00:12]} Qb6 {[%emt 0:14:09]} 15. Bh6 {[%emt 0:07:53]} Bxh6 {[%emt 0:09:30]} 16. Qxh6 {[%emt 0:00:06]} Bxf3 {[%emt 0:00:04]} 17. exf3 {[%emt 0:00:24]} Nd4 {[%emt 0:00:30]} 18. Qd2 {[%emt 0:02:24]} e5 {[%emt 0:04:17]} 19. Rfe1 {[%emt 0:05:48]} Rfe8 {[%emt 0:01:54]} 20. h4 {[%emt 0:00:37]} Ne6 {[%emt 0:15:08]} 21. Rcd1 {[%emt 0:03:29]} Rad8 {[%emt 0:00:16]} 22. h5 {[%emt 0:00:16]} Qc7 {[%emt 0:01:26]} 23. f4 {[%emt 0:15:30]} exf4 {[%emt 0:09:27]} 24. gxf4 {[%emt 0:00:07]} Qe7 {[%emt 0:00:04]} 25. hxg6 {[%emt 0:03:45]} hxg6 {[%emt 0:00:14]} 26. f5 {[%emt 0:00:11]} gxf5 {[%emt 0:00:27]} 27. Qh6 {[%emt 0:00:51]} Qf8 {[%emt 0:08:01]} 28. Qf6 {[%emt 0:00:11]} Qg7 {[%emt 0:02:38]} 29. Qxf5 {[%emt 0:00:12]} Nd4 {[%emt 0:00:21]} 30. Qd3 {[%emt 0:00:40]} Re5 {[%emt 0:00:17]} 31. Re3 {[%emt 0:06:19]} Rxe3 {[%emt 0:05:59]} 32. Qxe3 {[%emt 0:00:12]} Ne6 {[%emt 0:01:34]} 33. Rd3 {[%emt 0:03:31]} Kf8 {[%emt 0:01:56]} 34. Qd2 {[%emt 0:02:34]} Qa1+ {[%emt 0:01:20]} 35. Bf1 {[%emt 0:01:46]} Qe5 {[%emt 0:00:07]} 36. Rg3 {[%emt 0:02:33]} Ke7 {[%emt 0:02:40]} 37. Qe3 {[%emt 0:05:10]} 1/2-1/2

[Event "CZE-ch 2020"]
[Site "Pilsen"]
[Date "2020.08.24"]
[Round "2.16"]
[White "Malinovsky, Karel"]
[Black "Pokrupa, Marek"]
[Result "1/2-1/2"]
[ECO "C10"]
[WhiteElo "2474"]
[BlackElo "2164"]
[Annotator "ChessBase"]
[PlyCount "89"]
[EventDate "2020.08.23"]
[EventType "swiss"]
[EventCountry "CZE"]
[SourceTitle "playchess.com"]
[Source "ChessBase"]
[SourceQuality "1"]
[TimeControl "40/5400+30:1800+30"]

1. e4 {[%emt 0:00:00]} e6 {[%emt 0:00:00]} 2. d4 {[%emt 0:00:00]} d5 {[%emt 0:00:00]} 3. Nd2 {[%emt 0:00:21]} dxe4 {[%emt 0:00:35]} 4. Nxe4 {[%emt 0:00:09]} Nd7 {[%emt 0:00:04]} 5. Nf3 {[%emt 0:00:26]} Ngf6 {[%emt 0:00:04]} 6. Bd3 {[%emt 0:00:07]} Nxe4 {[%emt 0:03:00]} 7. Bxe4 {[%emt 0:00:09]} Nf6 {[%emt 0:00:04]} 8. Bg5 {[%emt 0:00:43]} Qd6 {[%emt 0:02:23]} 9. Bd3 {[%emt 0:01:26]} Be7 {[%emt 0:08:46]} 10. O-O {[%emt 0:01:59]} O-O {[%emt 0:14:19]} 11. Qe2 {[%emt 0:03:02]} Rd8 {[%emt 0:05:17]} 12. Ne5 {[%emt 0:13:47]} h6 {[%emt 0:11:12]} 13. Be3 {[%emt 0:09:20]} Bd7 {[%emt 0:16:29]} 14. Rad1 {[%emt 0:06:26]} Be8 {[%emt 0:01:30]} 15. c3 {[%emt 0:06:45]} Bf8 {[%emt 0:02:13]} 16. Bb1 {[%emt 0:02:51]} c5 {[%emt 0:03:18]} 17. Qc2 {[%emt 0:10:11]} g6 {[%emt 0:03:42]} 18. Qc1 {[%emt 0:01:17]} cxd4 {[%emt 0:04:37]} 19. Bxd4 {[%emt 0:01:08]} Qe7 {[%emt 0:00:59]} 20. c4 {[%emt 0:13:17]} Bg7 {[%emt 0:01:27]} 21. Qc3 {[%emt 0:00:32]} Rac8 {[%emt 0:07:21]} 22. Qe3 {[%emt 0:06:07]} b6 {[%emt 0:00:43]} 23. b3 {[%emt 0:01:41]} Nd7 {[%emt 0:02:57]} 24. g3 {[%emt 0:05:13]} Nxe5 {[%emt 0:00:30]} 25. Bxe5 {[%emt 0:00:07]} Bc6 {[%emt 0:00:54]} 26. Bxg7 {[%emt 0:03:10]} Kxg7 {[%emt 0:00:27]} 27. Be4 {[%emt 0:00:07]} Bxe4 {[%emt 0:05:14]} 28. Qxe4 {[%emt 0:01:57]} Rxd1 {[%emt 0:00:53]} 29. Rxd1 {[%emt 0:00:08]} Rd8 {[%emt 0:00:23]} 30. Rxd8 {[%emt 0:01:23]} Qxd8 {[%emt 0:00:03]} 31. b4 {[%emt 0:03:59]} Qd2 {[%emt 0:02:03]} 32. c5 {[%emt 0:01:49]} bxc5 {[%emt 0:00:52]} 33. Qe5+ {[%emt 0:00:09]} Kg8 {[%emt 0:02:44]} 34. bxc5 {[%emt 0:00:46]} a5 {[%emt 0:01:06]} 35. h4 {[%emt 0:04:04]} h5 {[%emt 0:00:31]} 36. Kg2 {[%emt 0:01:12]} Qc2 {[%emt 0:00:02]} 37. Qb8+ {[%emt 0:01:25]} Kg7 {[%emt 0:00:13]} 38. Qe5+ {[%emt 0:00:05]} Kg8 {[%emt 0:00:04]} 39. a3 {[%emt 0:00:36]} a4 {[%emt 0:00:11]} 40. Qb8+ {[%emt 0:00:36]} Kg7 {[%emt 0:00:07]} 41. Qd6 {[%emt 0:07:56]} Qe4+ {[%emt 0:04:01]} 42. Kg1 {[%emt 0:00:49]} Qe1+ {[%emt 0:00:13]} 43. Kg2 {[%emt 0:00:08]} Qe4+ {[%emt 0:00:10]} 44. Kh2 {[%emt 0:00:12]} Qe2 {[%emt 0:00:55]} 45. Kg2 {[%emt 0:03:16]} 1/2-1/2

[Event "CZE-ch 2020"]
[Site "Pilsen"]
[Date "2020.08.24"]
[Round "2.18"]
[White "Hollan, Martin"]
[Black "Jun, Rudolf"]
[Result "1-0"]
[ECO "E92"]
[WhiteElo "2346"]
[BlackElo "2094"]
[Annotator "ChessBase"]
[PlyCount "105"]
[EventDate "2020.08.23"]
[EventType "swiss"]
[EventCountry "CZE"]
[SourceTitle "playchess.com"]
[Source "ChessBase"]
[SourceQuality "1"]
[TimeControl "40/5400+30:1800+30"]

1. d4 {[%emt 0:00:00]} Nf6 {[%emt 0:00:00]} 2. Nf3 {[%emt 0:00:00]} g6 {[%emt 0:00:21]} 3. c4 {[%emt 0:00:00]} Bg7 {[%emt 0:00:35]} 4. Nc3 {[%emt 0:00:00]} O-O {[%emt 0:00:19]} 5. e4 {[%emt 0:00:05]} d6 {[%emt 0:00:46]} 6. Be2 {[%emt 0:00:07]} e5 {[%emt 0:00:55]} 7. d5 {[%emt 0:00:15]} a5 {[%emt 0:00:39]} 8. Bg5 {[%emt 0:00:38]} Na6 {[%emt 0:03:49]} 9. Nd2 {[%emt 0:00:22]} h6 {[%emt 0:02:08]} 10. Be3 {[%emt 0:00:29]} Nc5 {[%emt 0:01:41]} 11. a3 {[%emt 0:02:35]} Qe7 {[%emt 0:26:45]} 12. b4 {[%emt 0:01:40]} Ncxe4 {[%emt 0:20:07]} 13. Ncxe4 {[%emt 0:01:33]} Nxe4 {[%emt 0:02:09]} 14. Nxe4 {[%emt 0:00:08]} f5 {[%emt 0:00:07]} 15. bxa5 {[%emt 0:23:22]} fxe4 {[%emt 0:02:52]} 16. Qd2 {[%emt 0:00:10]} Bd7 {[%emt 0:03:04]} 17. O-O {[%emt 0:09:18]} Bf6 {[%emt 0:06:48]} 18. Rab1 {[%emt 0:07:49]} Bg5 {[%emt 0:04:09]} 19. Rxb7 {[%emt 0:02:11]} Bxe3 {[%emt 0:00:33]} 20. Qxe3 {[%emt 0:03:36]} Rxa5 {[%emt 0:05:06]} 21. Qxh6 {[%emt 0:03:25]} Be8 {[%emt 0:06:10]} 22. Bg4 {[%emt 0:03:48]} Bf7 {[%emt 0:02:58]} 23. Be6 {[%emt 0:01:29]} Bxe6 {[%emt 0:00:37]} 24. Qxg6+ {[%emt 0:00:07]} Kh8 {[%emt 0:00:49]} 25. Qh6+ {[%emt 0:05:08]} Kg8 {[%emt 0:01:16]} 26. dxe6 {[%emt 0:05:46]} Rxa3 {[%emt 0:01:26]} 27. Qg6+ {[%emt 0:00:41]} Kh8 {[%emt 0:00:19]} 28. Qxe4 {[%emt 0:00:37]} Rc3 {[%emt 0:06:56]} 29. Qc6 {[%emt 0:01:08]} Qxe6 {[%emt 0:00:22]} 30. Qxc7 {[%emt 0:00:39]} Qg6 {[%emt 0:00:23]} 31. Rb8 {[%emt 0:06:21]} Rxb8 {[%emt 0:00:29]} 32. Qxb8+ {[%emt 0:00:07]} Kg7 {[%emt 0:00:25]} 33. Qc7+ {[%emt 0:00:13]} Kh6 {[%emt 0:00:28]} 34. Rd1 {[%emt 0:01:06]} Rd3 {[%emt 0:00:30]} 35. Rxd3 {[%emt 0:05:12]} Qxd3 {[%emt 0:00:08]} 36. h3 {[%emt 0:00:08]} Kg6 {[%emt 0:00:57]} 37. Qc8 {[%emt 0:00:38]} Qb1+ {[%emt 0:00:28]} 38. Kh2 {[%emt 0:00:06]} Kf6 {[%emt 0:00:24]} 39. c5 {[%emt 0:00:53]} dxc5 {[%emt 0:00:51]} 40. Qc6+ {[%emt 0:00:21]} Kg5 {[%emt 0:00:39]} 41. Qxc5 {[%emt 0:30:09]} Kf5 {[%emt 0:01:14]} 42. g4+ {[%emt 0:00:00]} Ke6 {[%emt 0:00:26]} 43. Qe3 {[%emt 0:00:00]} Kf6 {[%emt 0:01:16]} 44. h4 {[%emt 0:00:00]} e4 {[%emt 0:02:21]} 45. Qf4+ {[%emt 0:00:00]} Kg6 {[%emt 0:00:45]} 46. h5+ {[%emt 0:00:00]} Kg7 {[%emt 0:00:07]} 47. Qg5+ {[%emt 0:00:00]} Kf7 {[%emt 0:00:29]} 48. Qf5+ {[%emt 0:00:00]} Kg7 {[%emt 0:00:15]} 49. g5 {[%emt 0:00:00]} Qb8+ {[%emt 0:00:26]} 50. Kg2 {[%emt 0:00:00]} Qb7 {[%emt 0:00:11]} 51. h6+ {[%emt 0:00:00]} Kh8 {[%emt 0:00:08]} 52. Qf8+ {[%emt 0:00:00]} Kh7 {[%emt 0:00:06]} 53. Qg7+ {[%emt 0:00:00]} 1-0